Cogmind - Beta 15 @@@ ROGUE MODE // 2025.05.13 @ 13:52:01 Player: Sgt. Smokeweed Result: Self-destructed Performance ------------- Evolutions (1) 500 Regions Visited (3) 600 Robots Destroyed (32) 160 Value Destroyed (644) 644 Prototype IDs (0) 0 Alien Tech Used (0) 0 Bonus (0) 0 TOTAL SCORE: 1904 Bonus ------- None Cogmind --------- Core Integrity 275/400 Matter 300/300 Energy 62/100 System Corruption 0% Temperature Warm (166) Movement Core (50) Location -9/Materials Parts ------- > --- POWER (1) -------- (None) > --- PROPULSION (4) --- (None) > --- UTILITY (2) ------ Hacking Suite > --- WEAPON (2) ------- Beam Cannon > --- INVENTORY (5) ---- Improved Assault Rifle Faulty Improved Assault Rifle Peak State ------------ > --- POWER ------------ Ion Engine > --- PROPULSION ------- Hover Unit Hover Unit Hover Unit Hover Unit > --- UTILITY ---------- Hacking Suite > --- WEAPON ----------- Beam Cannon Grenade Launcher > --- INVENTORY -------- Beam Cannon Beam Cannon [Rating: 10] Favorites ----------- Power Ion Engine Engine Ion Engine Propulsion Light Treads Treads Light Treads Hover Unit Hover Unit Utility Hacking Suite Hackware Hacking Suite Weapon Grenade Launcher Energy Gun Medium Laser Energy Cannon Beam Cannon Launcher Grenade Launcher Build | -11 -10 -10 -9 ------- Run | Yrd Mat Min Mat Slots Evolved 2 | . . . 2 Power . | . . . . Propulsion 2 | . . . 2 Utility . | . . . . Weapon . | . . . . Parts Attached 16 | 5 5 . 6 Power 1 | 1 . . . Engine 1 | 1 . . . Core . | . . . . Reactor . | . . . . Propulsion 6 | 2 . . 4 Treads 2 | 2 . . . Leg . | . . . . Wheel . | . . . . Hover 4 | . . . 4 Flight . | . . . . Utility 1 | . 1 . . Device . | . . . . Storage . | . . . . Processor . | . . . . Hackware 1 | . 1 . . Protection . | . . . . Artifact . | . . . . Weapon 8 | 2 4 . 2 Energy Gun 2 | 2 . . . Energy Cannon 3 | . 1 . 2 Ballistic Gun . | . . . . Ballistic Cannon . | . . . . Launcher 3 | . 3 . . Special Weapon . | . . . . Impact Weapon . | . . . . Slashing Weapon . | . . . . Piercing Weapon . | . . . . Special Melee Weapon . | . . . . Unidentified Prototypes . | . . . . Parts Lost 10 | . 2 . 8 Power 1 | . . . 1 Propulsion 4 | . . . 4 Utility . | . . . . Weapon 5 | . 2 . 3 Highest Loss Streak 4 | . 1 . 4 To Critical Strikes . | . . . . Average Backups 2 | . 2 3 2 Power . | . . . . Propulsion . | . . 1 . Utility . | . . . . Weapon 1 | . 1 2 2 Tool/Special . | . . . . Unused Backups 2 | . . . 2 Power . | . . . . Propulsion . | . . . . Utility . | . . . . Weapon 2 | . . . 2 Tool/Special . | . . . . Average Slot Usage (%) 74 | . 78 85 56 Engine 11 | . 14 14 3 Treads 23 | . 28 28 3 Hover 3 | . . . 16 Hackware 9 | . 7 14 11 Energy Gun 10 | . 14 . . Energy Cannon 5 | . . 14 18 Launcher 10 | . 12 14 3 Peak Build Rating 10 | 5 8 8 10 Average Rating 6 | 3 6 8 7 On Entrance 5 | . 5 8 8 Naked Turns . | . . . . Heaviest Build 11 | 9 11 11 11 Greatest Support 40 | 40 40 40 40 Greatest Overweight (x) 1 | . . . 1 Average Overweight (x) . | . . . . Largest Inventory Capacity 5 | 5 5 5 5 Average Capacity 5 | 5 5 5 5 Most Carried 3 | . 3 3 3 Average Carried 2 | . 2 3 2 Final Capacity 5 | 5 5 5 5 Final Carried 3 | . 3 3 2 Class Distribution -------------------- 100% | Mutant Dominant Class ---------------- Mutant | -10/Materials Mutant | -10/Mines Mutant | -9/Materials Resources | -11 -10 -10 -9 ----------- Run | Yrd Mat Min Mat Matter Collected 489 | 198 68 . 223 Remotely . | . . . . Salvage Created 626 | . 345 . 281 Parts 49 | . 24 . 25 Haulers Intercepted 2 | . 2 . . Recyclers Shooed 1 | . 1 . . Parts Field Recycled . | . . . . Retrieved Matter . | . . . . Parts Self-Destructed . | . . . . Prevented . | . . . . Kills | -11 -10 -10 -9 ------- Run | Yrd Mat Min Mat Combat Hostiles Destroyed 19 | . 8 . 11 Guns 5 | . 5 . . Cannons 8 | . . . 8 AOE 6 | . 3 . 3 Classes Destroyed 9 | . 8 . 1 Worker 2 | . 2 . . Builder 2 | . 1 . 1 Hauler 2 | . 2 . . Recycler 1 | . 1 . . Operator 4 | . 3 . 1 Watcher 2 | . 2 . . Swarmer 12 | . 5 . 7 Grunt 5 | . 3 . 2 Sentry 2 | . . . 2 Best Kill Streak 6 | . 5 . 6 Combat Bots Only 6 | . 3 . 6 Max Kills in Single Turn 2 | . 2 . 1 Gunslinging . | . . . . Exploded 1 | . 1 . 1 Melee . | . . . . Uniques/NPCs Destroyed . | . . . . Combat | -11 -10 -10 -9 -------- Run | Yrd Mat Min Mat Hostile Shots Fired 116 | . 45 . 71 Missed 33 | . 11 . 22 Hits 83 | . 34 . 49 Projectile 83 | . 34 . 49 Critical Strikes 3 | . . . 3 Damage Taken 1126 | . 500 . 626 Core 193 | . 68 . 125 Absorbed by Shields . | . . . . Core Remaining (%) 86 | 100 . 72 . Volleys Fired 69 | . 44 . 25 Largest 2 | . 2 . 2 Hottest 120 | . 90 . 120 Shots Fired 99 | . 56 . 43 Gun 46 | . 46 . . Cannon 37 | . . . 37 Launcher 16 | . 10 . 6 Special . | . . . . Kinetic . | . . . . Thermal 81 | . 44 . 37 Explosive 16 | . 10 . 6 Electromagnetic 2 | . 2 . . Robot Hit Streak 7 | . 7 . 4 Robot Miss Streak 3 | . 2 . 3 Penetration Max . | . . . . Secondary Targets . | . . . . Shots Hit Robots 54 | . 33 . 21 Core Hits 42 | . 25 . 17 Critical Kills . | . . . . Critical Parts Destroyed . | . . . . Critical Strikes 2 | . 2 . . Burn 2 | . 2 . . Melee Attacks . | . . . . Impact . | . . . . Slashing . | . . . . Piercing . | . . . . Sneak Attacks . | . . . . Combat Hostiles . | . . . . Follow-up Attacks . | . . . . Damage Inflicted 1904 | . 1264 . 640 Guns 361 | . 361 . . Cannons 406 | . . . 406 Explosions 1113 | . 900 . 213 Melee . | . . . . Ramming 24 | . 3 . 21 Kinetic . | . . . . Thermal 734 | . 328 . 406 Explosive 1092 | . 879 . 213 Electromagnetic 54 | . 54 . . Impact . | . . . . Slashing . | . . . . Piercing . | . . . . Highest Corruption 1 | . 1 1 . Average Corruption 1 | . 1 1 . Corruption Purged . | . . . . Corruption Blocked . | . . . . Effects 4 | . 2 2 . Matter Fused 2 | . 1 1 . Heat Flow Errors 1 | . . 1 . Misfires 1 | . 1 . . Overload Shots . | . . . . Overflow Damage 133 | . 114 . 19 Projectiles . | . . . . Explosions 132 | . 114 . 18 Melee 1 | . . . 1 Knockbacks . | . . . . Impact . | . . . . Kinetic . | . . . . Secondary . | . . . . Self-Inflicted Damage 177 | . 167 . 10 Shots 5 | . 5 . . Rammed 3 | . 2 . 1 Targets Rammed 3 | . 2 . 1 Kicked . | . . . . Crushed . | . . . . Highest Temperature 279 | . 117 279 189 Average Temperature 61 | . 34 147 81 Received Heat Transfer 288 | . 66 . 222 Siege Activations . | . . . . Martial Activations . | . . . . Shielding Activations . | . . . . Robots Disrupted . | . . . . Combat Hostiles . | . . . . Robots Corrupted 1 | . . . 1 Combat Hostiles . | . . . . Parts Fried 4 | . . . 4 Impact Corruptions 1 | . . . 1 Robots Melted . | . . . . Combat Hostiles . | . . . . Parts Melted 3 | . 3 . . Heat Transferred 1961 | . 1110 . 851 Parts Sabotaged . | . . . . Parts Stolen . | . . . . Parts Stripped . | . . . . Power Chain Reactions . | . . . . Alert | -11 -10 -10 -9 ------- Run | Yrd Mat Min Mat Maximum Alert Level 1 | . . . 1 Low Security (%) 99 | 100 100 100 99 Level 1 . | . . . . Level 2 . | . . . . Level 3 . | . . . . Level 4 . | . . . . Level 5 . | . . . . High Security . | . . . . Max Security . | . . . . Peak Influence 209 | . 195 69 209 Initial 69 | . . 69 7 Average 69 | . 66 48 103 Influence Increases 881 | . 502 . 379 Destroy 0b10 Robot/C 380 | . 160 . 220 Destroy 0b10 Robot/NC 65 | . 55 . 10 Destroy Leader 88 | . 38 . 50 Successful Hack 7 | . 7 . . Disable Machine 180 | . 150 . 30 Destroy Structure 116 | . 92 . 24 Partial Spotted 30 | . . . 30 Lose Combat Pursuer 15 | . . . 15 Influence Decreases 672 | . 325 158 189 Entered New Map 120 | . . 108 12 Time Decay 452 | . 305 50 97 Lost Part 100 | . 20 . 80 Squads Dispatched . | . . . . Investigation . | . . . . Extermination . | . . . . Reinforcement . | . . . . Assault . | . . . . Garrison . | . . . . Intercept . | . . . . Searches Triggered . | . . . . Construction Impeded . | . . . . Haulers Reinforced . | . . . . Active Scanning Responses . | . . . . Cargo Convoy Interrupts . | . . . . Stealth | -11 -10 -10 -9 --------- Run | Yrd Mat Min Mat Distress Signals . | . . . . Communications Jammed . | . . . . Distress Signals . | . . . . Times Spotted 31 | . 15 . 16 Peak Tracking Total 4 | . 3 . 4 Tactical Retreats 1 | . . . 1 Traps | -11 -10 -10 -9 ------- Run | Yrd Mat Min Mat Traps Triggered . | . . . . Indirectly . | . . . . Trap Hack Attempts . | . . . . Triggered . | . . . . Disarmed . | . . . . Reprogrammed . | . . . . Reused . | . . . . Traps Extracted . | . . . . Installed . | . . . . Triggered . | . . . . Machines | -11 -10 -10 -9 ---------- Run | Yrd Mat Min Mat Machines Disabled 12 | . 10 . 2 Max in Single Turn 3 | . 3 . 1 Machines Repaired . | . . . . Machines Dismantled . | . . . . Machines Sabotaged . | . . . . Overloaded Fab Kills . | . . . . Hacking | -11 -10 -10 -9 --------- Run | Yrd Mat Min Mat Machines Accessed 6 | . 5 . 1 Terminals 6 | . 5 . 1 Fabricators . | . . . . Repair Stations . | . . . . Recycling Units . | . . . . Scanalyzers . | . . . . Garrison Access . | . . . . Total Hacks 17 | . 15 . 2 Successful 4 | . 4 . . Failed 13 | . 11 . 2 Catastrophic 6 | . 5 . 1 Database Lockouts . | . . . . Manual 14 | . 12 . 2 Terminals 17 | . 15 . 2 Fabricators . | . . . . Repair Stations . | . . . . Recycling Units . | . . . . Scanalyzers . | . . . . Garrison Access . | . . . . Terminal Hacks 4 | . 4 . . Record 1 | . 1 . . Branch Access Points 1 | . 1 . . Hauler Manifests 1 | . 1 . . Registered Components 1 | . 1 . . Fabricator Hacks . | . . . . Repair Station Hacks . | . . . . Recycling Unit Hacks . | . . . . Scanalyzer . | . . . . Garrison Access Hacks . | . . . . Unauthorized Hacks . | . . . . Terminals . | . . . . Fabricators . | . . . . Repair Stations . | . . . . Recycling Units . | . . . . Scanalyzers . | . . . . Garrison Access . | . . . . Data Cores Recovered 3 | . 2 . 1 Used 2 | . 1 . 1 Hacking Detections 6 | . 5 . 1 Full Trace Events 1 | . . . 1 Feedback Events . | . . . . Feedback Blocked . | . . . . Robot Schematics Acquired . | . . . . Robots Built . | . . . . Authchips . | . . . . Time . | . . . . Total Robot Build Rating . | . . . . Part Schematics Acquired . | . . . . Parts Built . | . . . . Authchips . | . . . . Time . | . . . . Total Part Build Rating . | . . . . Parts Repaired . | . . . . Time . | . . . . Parts Recycled . | . . . . Recycled Matter . | . . . . Retrieved Matter . | . . . . Retrieved Components . | . . . . Parts Scanalyzed . | . . . . Part Schematics Acquired . | . . . . Parts Damaged . | . . . . Bothacking | -11 -10 -10 -9 ------------ Run | Yrd Mat Min Mat Used RIF Installer . | . . . . Robots Hacked . | . . . . Non-combat . | . . . . Combat . | . . . . Robot Hacks Applied . | . . . . Relay Couplers Released . | . . . . Fabnet Peak Effective % . | . . . . Robots Rewired . | . . . . Allies Hacked . | . . . . Hacks Repelled . | . . . . Allies | -11 -10 -10 -9 -------- Run | Yrd Mat Min Mat Total Allies . | . . . . Largest Group . | . . . . Highest-Rated Group . | . . . . Highest-Rated Ally . | . . . . Total Orders . | . . . . Ally Attacks . | . . . . Total Damage . | . . . . Kills . | . . . . Allies Corrupted . | . . . . Allies Melted . | . . . . Intel | -11 -10 -10 -9 ------- Run | Yrd Mat Min Mat Active Infowar (turns) . | . . . . Robot Analysis Total . | . . . . Derelict Logs Recovered 1 | . . 1 . Drone Launches . | . . . . Drone Recoveries . | . . . . Exploration | -11 -10 -10 -9 ------------- Run | Yrd Mat Min Mat Turns Passed 1281 | 59 884 101 237 Spaces Moved 792 | 39 479 64 210 Core 36 | 9 . . 27 Treads 591 | 30 479 64 18 Legs . | . . . . Wheels . | . . . . Hover 165 | . . . 165 Flight . | . . . . Fastest Speed 48 | 50 160 160 48 Average Speed 134 | 134 160 160 69 Slowest Speed 160 | 160 160 160 160 Overloaded Moves . | . . . . Propulsion Burnouts . | . . . . Robots Hopped . | . . . . Potential Cave-ins . | . . . . Cave-ins Triggered . | . . . . Exploration Rate (%) 31 | 4 79 18 24 Regions Visited 3 Branch Regions 1 Pre-discovered Areas . | . . . . Known Exits Taken 1 | . 1 . . Unknown Exits Taken 2 | 1 . 1 . Scrap Searched . | . . . . Spaces Dug . | . . . . Terrain Destroyed 114 | . 92 . 22 Melee . | . . . . Projectile . | . . . . AOE 114 | . 92 . 22 Terrain Rammed . | . . . . Walls Destroyed . | . . . . Machines Disabled . | . . . . Actions | -11 -10 -10 -9 --------- Run | Yrd Mat Min Mat Total 904 | 43 541 63 257 Wait 14 | . 3 . 11 Move 789 | 38 478 63 210 Hop . | . . . . Pick Up 7 | . 5 . 2 Fast Attach 11 | 5 3 . 3 Attach 6 | . 3 . 3 Detach 1 | . 1 . . Swap . | . . . . Drop 4 | . 2 . 2 Fire 69 | . 44 . 25 Melee . | . . . . Ram 1 | . . . 1 Kick . | . . . . Crush 2 | . 2 . . Escape Stasis . | . . . . Rewire . | . . . . Trap . | . . . . Miscellaneous . | . . . . Route ------- -11/Scrapyard -10/Materials (discovered 5 exits: *Mat x3 / *Min x2) -10/Mines -9/Materials (discovered 1 exit: Min) History --------- Turn | Location | Event 4 | -11/Scrapyard | Discovered new exit (range 15) 60 | -11/Scrapyard | Entered Materials 95 | -10/Materials | Identified exit to Mines 302 | -10/Materials | Build established: Mutant 398 | -10/Materials | Discovered new exit (range 11) 718 | -10/Materials | Discovered new exit (range 12) 892 | -10/Materials | Discovered new exit (range 8) 944 | -10/Materials | Entered Mines 958 | -10/Mines | Met a Derelict bent on vengeance 978 | -10/Mines | Discovered new exit (range 16) 1026 | -10/Mines | Learned location of 1 exit from Materials 1045 | -10/Mines | Entered Materials 1045 | -9/Materials | Evolved 2 slots: Propulsion x2 1046 | -9/Materials | Identified exit to Mines 1159 | -9/Materials | Lost 4 parts (1p2n1w) 1267 | -9/Materials | Lost 3 parts (2n1w) 1282 | -9/Materials | Self-destructed Last Messages --------------- Structural Scanner fried. Acquired 30 matter. K-01 Serf collects debris. C-30 ARC bursts open, deploying its payload. S-10 Pest unfolds itself. S-10 Pest destroyed. Beam Cannon destroyed. Hover Unit destroyed. S-10 Pest destroyed. Hover Unit destroyed. R-06 Scavenger collects Flight Unit. S-10 Pest destroyed. Processing Tank disabled. R-06 Scavenger collects Flight Unit. R-06 Scavenger collects Lgt. Assault Rifle. R-06 Scavenger collects Lgt. Ion Engine. Acquired 121 matter. Scanalyzer disabled. Beam Cannon destroyed. Y-45 Defender destroyed. Map ----- +----------------------------------------------------+ | ??? """ ## # """ """ | | ??# """ ## # """ """ | | ??# ## # | | ???? """ ## ########### | | ???? """ ## #?????????? | | ?????""" ## #?????????? | | ?????? ## !/== #??????###? | | ???????###### !/ #??????# | | ????????????# // #??????# | | ????????????#########??????# | | ???????????????????????????# | | ???????????????????????????# | | ???????????????????????????# | | ????????????????#####??????# | | ???????????????? #??????# | | ???????????????" #??????# | | ???????????????" ###+##?#### | | ?????????????""" ! # ###### | | ????????????# # | | ????????????#""" # | | ????????????#""" # | | ????????????#""" # | | ????????????# # """" | | ????????????# # """" | | ?###########?? ?# """" | | ?# @ #####+#### | | ?# # | | ?#[[ # | | ?#=%= g ##+#########+#### | | ?# "S """ # #?????????# ?? | | # " " """ # #?????????# """ # | | ## "" """ ####?????????# "Y" # | | ?# #????????????# + | | ?###########????????????####### | | ??????????????????????????????? | | ??????????????????????????????? | | ??????????????????????????????? | | ??????????????????????????????? | | ??????????????????????????????? | | ??????????????????????????????? | | | | | | | | | | | | | | | | | | | | | +----------------------------------------------------+ Best States ------------- Heat Dissipation 28 Energy Generation 10 Energy Capacity 250 Matter Stores 300 Matter Capacity 300 Sight Range 16 Terrain Scan Density 10 Evasion (%) 55 Recoil Reduction 2 Offensive Hacking 10 Item Schematics ----------------- None Robot Schematics ------------------ None Fabricated ------------ Nothing Repaired ---------- Nothing Alien Tech Used ----------------- None Achievements -------------- None Challenges ------------ None Game ------ Seed NovaMinesnifferLink Manual? 0 Play Time 00:12:12 Cumulative 83.0 hours Start 2025.05.13 @ 13:42:35 End 2025.05.13 @ 13:52:01 Sessions 1 Manual Loads 0 Difficulty Rogue Special Mode None Game No. 216 Rogue 141 Adventurer 75 Explorer 0 Win Type - Total 0 Types 0/0/0/0/0/0/0/0/0/0 Lore% 40 Gallery% 40 Achievement% 35 Wizard Run 0 Options --------- Layout 1 ASCII 0 Keyboard 0 Movement Mouse Keybinds 0 Fullscreen 1 Font 32/SmallcapsGlow Map View 50x35 Zoom Use 0% Tactical HUD 0 Map Filters NONE Filters NONE Steam 1 RUN: 6badc147-1186-47f7-8355-4cfa8fe2a94a